[Event "Chess Stars Match"]
[Site "Teatro Capri, Paterna, Spain"]
[Date "2019.12.15"]
[Round "3.1"]
[White "Howell, David W L"]
[Black "Semenova, Elena"]
[Result "1-0"]
[TimeControl "7m+3s"]
[WhiteTitle "GM"]
[BlackTitle "WIM"]
[WhiteFideId "410608"]
[BlackFideId "24125148"]
[WhiteElo "2676"]
[BlackElo "2290"]

1. g3 {[%clk 00:03:05]} d5 {[%clk 00:04:05]} {[%emt 00:00:01]} 2. Nf3 {[%clk
00:03:04]} {[%emt 00:00:03]} Nd7 {[%clk 00:04:06]} {[%emt 00:00:02]} 3. d4
{[%clk 00:02:57]} {[%emt 00:00:10]} b5 {[%clk 00:04:03]} {[%emt 00:00:07]} 4.
Bg2 {[%clk 00:02:56]} {[%emt 00:00:04]} Ngf6 {[%clk 00:04:02]} {[%emt
00:00:04]} 5. O-O {[%clk 00:02:56]} {[%emt 00:00:02]} e6 {[%clk 00:03:59]}
{[%emt 00:00:06]} 6. Qd3 {[%clk 00:02:44]} {[%emt 00:00:15]} Rb8 {[%clk
00:02:59]} {[%emt 00:01:04]} 7. Bf4 {[%clk 00:02:19]} {[%emt 00:00:28]} Bd6
{[%clk 00:02:39]} {[%emt 00:00:23]} 8. Ne5 {[%clk 00:01:56]} {[%emt 00:00:27]}
Bxe5 {[%clk 00:01:23]} {[%emt 00:01:19]} 9. dxe5 {[%clk 00:01:57]} {[%emt
00:00:02]} Nc5 {[%clk 00:01:11]} {[%emt 00:00:15]} 10. Qe3 {[%clk 00:01:30]}
{[%emt 00:00:30]} Nfd7 {[%clk 00:01:01]} {[%emt 00:00:13]} 11. Bg5 {[%clk
00:01:32]} {[%emt 00:00:01]} f6 {[%clk 00:00:50]} {[%emt 00:00:14]} 12. exf6
{[%clk 00:01:33]} {[%emt 00:00:02]} gxf6 {[%clk 00:00:43]} {[%emt 00:00:10]} 13.
Bh6 {[%clk 00:01:29]} {[%emt 00:00:07]} Kf7 {[%clk 00:00:33]} {[%emt 00:00:13]}
14. Nd2 {[%clk 00:01:31]} Qe7 {[%clk 00:00:24]} {[%emt 00:00:12]} 15. Qf3
{[%clk 00:00:38]} {[%emt 00:00:56]} Ne5 {[%clk 00:00:26]} {[%emt 00:00:02]} 16.
Qh5+ {[%clk 00:00:40]} Ng6 {[%clk 00:00:27]} {[%emt 00:00:02]} 17. f4 {[%clk
00:00:31]} {[%emt 00:00:12]} f5 {[%clk 00:00:27]} {[%emt 00:00:03]} 18. Nf3
{[%clk 00:00:30]} {[%emt 00:00:04]} Nd7 {[%clk 00:00:25]} {[%emt 00:00:06]} 19.
Rad1 {[%clk 00:00:27]} {[%emt 00:00:05]} Bb7 {[%clk 00:00:25]} {[%emt
00:00:04]} 20. e4 {[%clk 00:00:29]} {[%emt 00:00:01]} fxe4 {[%clk 00:00:11]}
{[%emt 00:00:17]} 21. Ng5+ {[%clk 00:00:15]} {[%emt 00:00:17]} Kg8 {[%clk
00:00:11]} {[%emt 00:00:03]} 22. Bh3 {[%clk 00:00:15]} {[%emt 00:00:03]} Nf6
{[%clk 00:00:11]} {[%emt 00:00:03]} 23. Qe2 {[%clk 00:00:16]} {[%emt 00:00:02]}
Bc8 {[%clk 00:00:12]} {[%emt 00:00:02]} 24. Qf2 {[%clk 00:00:13]} {[%emt
00:00:06]} c6 {[%clk 00:00:14]} {[%emt 00:00:02]} 25. f5 {[%clk 00:00:11]}
{[%emt 00:00:05]} exf5 {[%clk 00:00:15]} {[%emt 00:00:02]} 26. Bxf5 {[%clk
00:00:13]} Bxf5 {[%clk 00:00:16]} {[%emt 00:00:02]} 27. Qxf5 {[%clk 00:00:15]}
{[%emt 00:00:01]} Rf8 {[%clk 00:00:18]} {[%emt 00:00:01]} 28. Bxf8 {[%clk
00:00:17]} {[%emt 00:00:01]} 1-0

[Event "Chess Stars Match"]
[Site "Teatro Capri, Paterna, Spain"]
[Date "2019.12.15"]
[Round "3.2"]
[White "Hamitevici, Vladimir"]
[Black "Llobell Cortell, Enrique"]
[Result "0-1"]
[TimeControl "7m+3s"]
[WhiteTitle "GM"]
[BlackTitle "IM"]
[WhiteFideId "13902393"]
[BlackFideId "2216116"]
[WhiteElo "2453"]
[BlackElo "2401"]

1. a3 {[%clk 00:03:04]} {[%emt 00:00:02]} d5 {[%clk 00:04:01]} {[%emt
00:00:06]} 2. Nf3 {[%clk 00:03:02]} {[%emt 00:00:04]} Bg4 {[%clk 00:04:02]}
{[%emt 00:00:01]} 3. e3 {[%clk 00:02:56]} {[%emt 00:00:09]} e5 {[%clk
00:04:00]} {[%emt 00:00:05]} 4. h3 {[%clk 00:02:47]} {[%emt 00:00:12]} Bxf3
{[%clk 00:04:02]} {[%emt 00:00:02]} 5. Qxf3 {[%clk 00:02:49]} {[%emt 00:00:01]}
c6 {[%clk 00:04:03]} {[%emt 00:00:01]} 6. d3 {[%clk 00:02:40]} {[%emt
00:00:13]} Bd6 {[%clk 00:03:23]} {[%emt 00:00:41]} 7. e4 {[%clk 00:02:09]}
{[%emt 00:00:35]} Ne7 {[%clk 00:03:24]} {[%emt 00:00:02]} 8. g4 {[%clk
00:01:28]} {[%emt 00:00:44]} Nd7 {[%clk 00:03:15]} {[%emt 00:00:11]} 9. Nc3
{[%clk 00:01:24]} {[%emt 00:00:08]} d4 {[%clk 00:03:17]} {[%emt 00:00:01]} 10.
Ne2 {[%clk 00:01:24]} {[%emt 00:00:02]} Nc5 {[%clk 00:03:06]} {[%emt 00:00:12]}
11. h4 {[%clk 00:00:56]} {[%emt 00:00:32]} Ne6 {[%clk 00:03:03]} {[%emt
00:00:07]} 12. g5 {[%clk 00:00:57]} {[%emt 00:00:02]} Ng6 {[%clk 00:03:04]}
{[%emt 00:00:01]} 13. Qg4 {[%clk 00:00:18]} {[%emt 00:00:42]} Qa5+ {[%clk
00:02:44]} {[%emt 00:00:24]} 14. Bd2 {[%clk 00:00:17]} {[%emt 00:00:04]} Qb6
{[%clk 00:02:46]} {[%emt 00:00:01]} 15. b3 {[%clk 00:00:09]} {[%emt 00:00:10]}
Ngf4 {[%clk 00:02:39]} {[%emt 00:00:10]} 16. Nxf4 {[%clk 00:00:09]} {[%emt
00:00:03]} Nxf4 {[%clk 00:02:37]} {[%emt 00:00:05]} 17. Bxf4 {[%clk 00:00:08]}
{[%emt 00:00:04]} exf4 {[%clk 00:02:38]} {[%emt 00:00:02]} 18. Bh3 {[%clk
00:00:10]} {[%emt 00:00:01]} O-O {[%clk 00:02:06]} {[%emt 00:00:35]} 19. Kf1
{[%clk 00:00:10]} {[%emt 00:00:04]} Qc5 {[%clk 00:01:53]} {[%emt 00:00:17]} 20.
Qe2 {[%clk 00:00:05]} {[%emt 00:00:07]} f6 {[%clk 00:00:48]} {[%emt 00:01:08]}
21. g6 {[%clk 00:00:04]} {[%emt 00:00:04]} h6 {[%clk 00:00:38]} {[%emt
00:00:14]} 22. Kg2 {[%clk 00:00:06]} Rae8 {[%clk 00:00:30]} {[%emt 00:00:12]}
23. Kf3 {[%clk 00:00:07]} f5 {[%clk 00:00:24]} {[%emt 00:00:11]} 24. e5 {[%clk
00:00:09]} Qd5+ {[%clk 00:00:21]} {[%emt 00:00:06]} 0-1

[Event "Chess Stars Match"]
[Site "Teatro Capri, Paterna, Spain"]
[Date "2019.12.15"]
[Round "3.3"]
[White "Injac, Teodora"]
[Black "Macias Pino, Diego"]
[Result "1-0"]
[TimeControl "7m+3s"]
[WhiteTitle "WIM"]
[WhiteFideId "932400"]
[BlackFideId "24529133"]
[WhiteElo "2284"]
[BlackElo "2161"]

1. d4 {[%clk 00:04:04]} {[%emt 00:00:02]} Nf6 {[%clk 00:06:05]} {[%emt
00:00:01]} 2. Nf3 {[%clk 00:04:06]} {[%emt 00:00:01]} e6 {[%clk 00:06:03]}
{[%emt 00:00:06]} 3. e3 {[%clk 00:04:07]} {[%emt 00:00:02]} b6 {[%clk
00:06:04]} {[%emt 00:00:02]} 4. Bd3 {[%clk 00:04:09]} {[%emt 00:00:01]} Bb7
{[%clk 00:06:06]} 5. O-O {[%clk 00:04:10]} {[%emt 00:00:01]} d5 {[%clk
00:06:09]} {[%emt 00:00:01]} 6. b3 {[%clk 00:04:12]} Nbd7 {[%clk 00:06:10]}
{[%emt 00:00:02]} 7. c4 {[%clk 00:04:13]} {[%emt 00:00:02]} Bd6 {[%clk
00:06:03]} {[%emt 00:00:09]} 8. cxd5 {[%clk 00:04:13]} {[%emt 00:00:06]} exd5
{[%clk 00:06:03]} {[%emt 00:00:03]} 9. Ba3 {[%clk 00:04:14]} {[%emt 00:00:02]}
c5 {[%clk 00:06:00]} {[%emt 00:00:05]} 10. Nc3 {[%clk 00:04:08]} {[%emt
00:00:09]} a6 {[%clk 00:06:01]} {[%emt 00:00:03]} 11. Rc1 {[%clk 00:04:08]}
{[%emt 00:00:03]} O-O {[%clk 00:06:02]} {[%emt 00:00:02]} 12. Qe2 {[%clk
00:03:33]} {[%emt 00:00:38]} Re8 {[%clk 00:06:01]} {[%emt 00:00:04]} 13. Na4
{[%clk 00:03:31]} {[%emt 00:00:05]} Ne4 {[%clk 00:05:51]} {[%emt 00:00:13]} 14.
Rfd1 {[%clk 00:03:17]} {[%emt 00:00:17]} f5 {[%clk 00:05:16]} {[%emt 00:00:39]}
15. dxc5 {[%clk 00:00:41]} {[%emt 00:02:40]} bxc5 {[%clk 00:05:12]} {[%emt
00:00:07]} 16. Nd2 {[%clk 00:00:40]} {[%emt 00:00:04]} Qe7 {[%clk 00:05:09]}
{[%emt 00:00:07]} 17. Nf1 {[%clk 00:00:17]} {[%emt 00:00:25]} f4 {[%clk
00:03:32]} {[%emt 00:01:40]} 18. Bb2 {[%clk 00:00:10]} {[%emt 00:00:11]} Nef6
{[%clk 00:03:04]} {[%emt 00:00:31]} 19. Qf3 {[%clk 00:00:08]} {[%emt 00:00:05]}
fxe3 {[%emt 00:00:53]} 20. Nxe3 Ne5 {[%clk 00:02:10]} {[%emt 00:00:07]} 21.
Bxe5 {[%clk 00:00:09]} {[%emt 00:00:05]} Qxe5 {[%clk 00:02:12]} {[%emt
00:00:01]} 22. Qh3 {[%clk 00:00:09]} {[%emt 00:00:03]} Bc8 {[%clk 00:01:28]}
{[%emt 00:00:47]} 23. Qg3 {[%clk 00:00:11]} Qe7 {[%clk 00:00:17]} {[%emt
00:01:14]} 24. Qh4 {[%clk 00:00:13]} {[%emt 00:00:01]} d4 {[%clk 00:00:16]}
{[%emt 00:00:05]} 25. Nf5 {[%clk 00:00:07]} {[%emt 00:00:09]} Bxf5 26. Bxf5
{[%clk 00:00:10]} Qe5 {[%clk 00:00:15]} {[%emt 00:00:05]} 27. Bd3 {[%clk
00:00:10]} {[%emt 00:00:03]} Qd5 {[%clk 00:00:06]} {[%emt 00:00:12]} 28. Nb6
{[%clk 00:00:10]} {[%emt 00:00:02]} Qc6 {[%clk 00:00:06]} {[%emt 00:00:03]} 29.
Nxa8 {[%clk 00:00:12]} {[%emt 00:00:01]} Rxa8 {[%clk 00:00:09]} 30. Bc4+ {[%clk
00:00:14]} {[%emt 00:00:02]} Kh8 {[%clk 00:00:10]} {[%emt 00:00:01]} 31. Re1
{[%clk 00:00:16]} Qd7 {[%clk 00:00:09]} {[%emt 00:00:04]} 32. h3 {[%clk
00:00:11]} {[%emt 00:00:08]} Rf8 {[%clk 00:00:12]} {[%emt 00:00:01]} 33. Bd3
{[%clk 00:00:12]} {[%emt 00:00:02]} Kg8 {[%clk 00:00:11]} {[%emt 00:00:04]} 34.
Bxa6 {[%clk 00:00:12]} {[%emt 00:00:03]} Qf5 {[%clk 00:00:10]} {[%emt
00:00:03]} 35. Bc4+ {[%clk 00:00:14]} {[%emt 00:00:01]} Kh8 {[%clk 00:00:12]}
36. Rcd1 {[%clk 00:00:15]} {[%emt 00:00:03]} Nd7 {[%clk 00:00:10]} {[%emt
00:00:05]} 37. Bd3 {[%clk 00:00:15]} {[%emt 00:00:02]} g5 {[%clk 00:00:06]}
{[%emt 00:00:08]} 38. Bxf5 {[%clk 00:00:17]} {[%emt 00:00:02]} gxh4 {[%clk
00:00:08]} 39. Bxd7 {[%clk 00:00:18]} {[%emt 00:00:02]} 1-0

[Event "Chess Stars Match"]
[Site "Teatro Capri, Paterna, Spain"]
[Date "2019.12.15"]
[Round "3.4"]
[White "Randazzo, Adrian"]
[Black "Vallejo Pons, Francisco"]
[Result "0-1"]
[TimeControl "7m+3s"]
[WhiteTitle "FM"]
[BlackTitle "GM"]
[WhiteFideId "114251"]
[BlackFideId "2205530"]
[WhiteElo "2230"]
[BlackElo "2704"]

1. e4 {[%clk 00:04:03]} {[%emt 00:00:02]} e5 {[%clk 00:03:04]} {[%emt
00:00:02]} 2. Nf3 {[%clk 00:04:04]} {[%emt 00:00:02]} Nc6 {[%clk 00:03:06]}
{[%emt 00:00:02]} 3. Nc3 {[%clk 00:04:05]} {[%emt 00:00:02]} Nf6 {[%clk
00:03:04]} {[%emt 00:00:05]} 4. d4 {[%clk 00:04:04]} {[%emt 00:00:04]} exd4
{[%clk 00:03:04]} {[%emt 00:00:03]} 5. Nxd4 {[%clk 00:04:05]} {[%emt 00:00:02]}
Nxe4 {[%clk 00:02:33]} {[%emt 00:00:34]} 6. Nxe4 {[%clk 00:04:04]} {[%emt
00:00:03]} Qe7 {[%clk 00:02:34]} {[%emt 00:00:02]} 7. f3 {[%clk 00:04:05]}
{[%emt 00:00:02]} d5 {[%clk 00:02:36]} {[%emt 00:00:01]} 8. Bb5 {[%clk
00:04:06]} {[%emt 00:00:02]} Bd7 {[%clk 00:02:38]} {[%emt 00:00:02]} 9. Bxc6
{[%clk 00:04:07]} {[%emt 00:00:02]} bxc6 {[%clk 00:02:39]} {[%emt 00:00:01]} 10.
O-O {[%clk 00:04:05]} {[%emt 00:00:04]} dxe4 {[%clk 00:02:40]} {[%emt
00:00:03]} 11. fxe4 {[%clk 00:04:06]} {[%emt 00:00:02]} g6 {[%clk 00:02:04]}
{[%emt 00:00:40]} 12. Bf4 {[%clk 00:03:52]} {[%emt 00:00:16]} Bg7 {[%clk
00:01:59]} {[%emt 00:00:08]} 13. Bxc7 {[%clk 00:03:03]} {[%emt 00:00:52]} Bg4
{[%clk 00:01:34]} {[%emt 00:00:27]} 14. Qxg4 {[%clk 00:01:03]} {[%emt
00:02:03]} Bxd4+ {[%clk 00:01:34]} {[%emt 00:00:03]} 15. Kh1 {[%clk 00:01:03]}
{[%emt 00:00:03]} Qxc7 {[%clk 00:01:34]} {[%emt 00:00:03]} 0-1

[Event "Chess Stars Match"]
[Site "Teatro Capri, Paterna, Spain"]
[Date "2019.12.15"]
[Round "3.5"]
[White "Povshednyi, Ivan"]
[Black "Arizmendi Martinez, Julen Luis"]
[Result "1-0"]
[TimeControl "7m+3s"]
[BlackTitle "GM"]
[WhiteFideId "14190907"]
[BlackFideId "2205092"]
[WhiteElo "1795"]
[BlackElo "2511"]

1. e4 {[%clk 00:06:05]} e6 {[%clk 00:03:05]} {[%emt 00:00:02]} 2. d4 {[%clk
00:05:48]} {[%emt 00:00:19]} d5 {[%clk 00:03:07]} {[%emt 00:00:01]} 3. Nc3
{[%clk 00:05:51]} Bb4 {[%clk 00:03:07]} {[%emt 00:00:03]} 4. e5 {[%clk
00:05:52]} {[%emt 00:00:02]} Ne7 {[%clk 00:03:08]} {[%emt 00:00:02]} 5. a3
{[%clk 00:05:54]} {[%emt 00:00:01]} Bxc3+ {[%clk 00:03:10]} 6. bxc3 {[%clk
00:05:56]} b6 {[%clk 00:03:09]} {[%emt 00:00:05]} 7. Nf3 {[%clk 00:05:54]}
{[%emt 00:00:05]} Ba6 {[%clk 00:02:51]} {[%emt 00:00:21]} 8. Bd3 {[%clk
00:05:53]} {[%emt 00:00:04]} Qd7 {[%clk 00:02:44]} {[%emt 00:00:11]} 9. O-O
{[%clk 00:05:53]} {[%emt 00:00:03]} Qa4 {[%clk 00:02:36]} {[%emt 00:00:10]} 10.
Qe2 {[%clk 00:05:48]} {[%emt 00:00:08]} Bxd3 {[%clk 00:02:28]} {[%emt
00:00:12]} 11. cxd3 {[%clk 00:05:49]} {[%emt 00:00:02]} c5 {[%clk 00:02:23]}
{[%emt 00:00:08]} 12. Bg5 {[%clk 00:05:48]} {[%emt 00:00:04]} Nec6 {[%clk
00:02:19]} {[%emt 00:00:08]} 13. dxc5 {[%clk 00:05:39]} {[%emt 00:00:12]} bxc5
{[%clk 00:02:21]} {[%emt 00:00:01]} 14. Be3 {[%clk 00:05:13]} {[%emt 00:00:28]}
Nd7 {[%clk 00:02:21]} {[%emt 00:00:03]} 15. d4 {[%clk 00:05:11]} {[%emt
00:00:06]} c4 {[%clk 00:02:12]} {[%emt 00:00:12]} 16. Rfb1 {[%clk 00:05:09]}
{[%emt 00:00:04]} h6 {[%clk 00:02:02]} {[%emt 00:00:13]} 17. Ne1 {[%clk
00:04:50]} {[%emt 00:00:22]} Na5 {[%clk 00:01:27]} {[%emt 00:00:39]} 18. f4
{[%clk 00:04:46]} {[%emt 00:00:06]} Nb3 {[%clk 00:01:26]} {[%emt 00:00:04]} 19.
Ra2 {[%clk 00:04:48]} {[%emt 00:00:02]} O-O {[%clk 00:01:18]} {[%emt 00:00:11]}
20. Qg4 {[%clk 00:04:43]} {[%emt 00:00:08]} Qc6 {[%clk 00:01:18]} {[%emt
00:00:02]} 21. Nf3 {[%clk 00:04:38]} {[%emt 00:00:08]} f5 {[%clk 00:01:19]}
{[%emt 00:00:03]} 22. Qh3 {[%clk 00:04:30]} {[%emt 00:00:10]} Nb6 {[%clk
00:01:19]} {[%emt 00:00:04]} 23. Bf2 {[%clk 00:04:21]} {[%emt 00:00:12]} Qe8
{[%clk 00:01:13]} {[%emt 00:00:09]} 24. Be1 {[%clk 00:04:10]} {[%emt 00:00:15]}
Na4 {[%clk 00:01:13]} {[%emt 00:00:03]} 25. g4 {[%clk 00:04:10]} {[%emt
00:00:03]} Qg6 {[%clk 00:01:13]} {[%emt 00:00:03]} 26. g5 {[%clk 00:04:11]}
{[%emt 00:00:02]} Kf7 {[%clk 00:01:04]} {[%emt 00:00:12]} 27. Rg2 {[%clk
00:04:00]} {[%emt 00:00:14]} Rh8 {[%clk 00:01:03]} {[%emt 00:00:04]} 28. Qg3
{[%clk 00:03:52]} {[%emt 00:00:11]} hxg5 {[%clk 00:00:57]} {[%emt 00:00:08]} 29.
Nxg5+ {[%clk 00:03:54]} {[%emt 00:00:01]} Ke7 {[%clk 00:00:59]} {[%emt
00:00:01]} 30. Qe3 {[%clk 00:03:50]} {[%emt 00:00:07]} Qh5 {[%clk 00:00:58]}
{[%emt 00:00:04]} 31. Nf3 {[%clk 00:03:45]} {[%emt 00:00:08]} Rag8 {[%clk
00:00:57]} {[%emt 00:00:04]} 32. Nd2 {[%clk 00:03:41]} {[%emt 00:00:07]} Nb6
{[%clk 00:00:51]} {[%emt 00:00:09]} 33. Nxb3 {[%clk 00:03:41]} {[%emt
00:00:02]} cxb3 {[%clk 00:00:53]} {[%emt 00:00:01]} 34. Rxb3 {[%clk 00:03:39]}
{[%emt 00:00:06]} Qd1 {[%clk 00:00:51]} {[%emt 00:00:04]} 35. Rb5 {[%clk
00:03:22]} {[%emt 00:00:21]} g5 {[%clk 00:00:39]} {[%emt 00:00:15]} 36. fxg5
{[%clk 00:03:19]} {[%emt 00:00:06]} Rh4 {[%clk 00:00:39]} {[%emt 00:00:03]} 37.
Qd2 {[%clk 00:03:01]} {[%emt 00:00:22]} Qxd2 {[%clk 00:00:33]} {[%emt
00:00:09]} 38. Bxd2 {[%clk 00:02:59]} {[%emt 00:00:05]} Rh3 {[%clk 00:00:33]}
{[%emt 00:00:03]} 39. a4 {[%clk 00:02:59]} {[%emt 00:00:03]} Kd7 {[%clk
00:00:31]} {[%emt 00:00:04]} 40. a5 {[%clk 00:03:00]} {[%emt 00:00:02]} Kc6
{[%clk 00:00:34]} 41. Rc5+ {[%clk 00:03:03]} Kb7 {[%clk 00:00:36]} 42. axb6
{[%clk 00:03:05]} axb6 {[%clk 00:00:38]} {[%emt 00:00:01]} 43. Rb5 {[%clk
00:03:05]} {[%emt 00:00:02]} Rd3 {[%clk 00:00:38]} {[%emt 00:00:03]} 44. Rb2
{[%clk 00:03:06]} {[%emt 00:00:02]} Rh3 {[%clk 00:00:39]} {[%emt 00:00:03]} 45.
Rg3 {[%clk 00:03:06]} {[%emt 00:00:03]} Rxg3+ {[%clk 00:00:40]} {[%emt
00:00:02]} 46. hxg3 {[%clk 00:03:08]} Kc6 {[%clk 00:00:41]} {[%emt 00:00:02]}
47. Kg2 {[%clk 00:03:10]} Rh8 {[%clk 00:00:42]} {[%emt 00:00:02]} 48. Bf4
{[%clk 00:03:07]} {[%emt 00:00:06]} Rh7 {[%clk 00:00:44]} {[%emt 00:00:02]} 49.
Rb1 {[%clk 00:03:06]} {[%emt 00:00:04]} Ra7 {[%clk 00:00:45]} {[%emt 00:00:02]}
50. g4 {[%clk 00:02:41]} {[%emt 00:00:28]} fxg4 {[%clk 00:00:44]} {[%emt
00:00:04]} 51. Kg3 {[%clk 00:02:43]} Ra3 {[%clk 00:00:47]} 52. Kxg4 {[%clk
00:02:43]} {[%emt 00:00:03]} Rxc3 {[%clk 00:00:48]} {[%emt 00:00:02]} 53. Rc1
{[%clk 00:02:43]} {[%emt 00:00:04]} 1-0

[Event "Chess Stars Match"]
[Site "Teatro Capri, Paterna, Spain"]
[Date "2019.12.15"]
[Round "4.1"]
[White "Llobell Cortell, Enrique"]
[Black "Howell, David W L"]
[Result "0-1"]
[TimeControl "7m+3s"]
[WhiteTitle "IM"]
[BlackTitle "GM"]
[WhiteFideId "2216116"]
[BlackFideId "410608"]
[WhiteElo "2401"]
[BlackElo "2676"]

1. e4 {[%clk 00:04:04]} {[%emt 00:00:01]} c6 {[%clk 00:03:05]} {[%emt
00:00:02]} 2. Nc3 {[%clk 00:03:59]} {[%emt 00:00:09]} d5 {[%clk 00:03:05]}
{[%emt 00:00:02]} 3. Nf3 {[%clk 00:04:00]} {[%emt 00:00:01]} dxe4 {[%clk
00:03:03]} {[%emt 00:00:06]} 4. Nxe4 {[%clk 00:04:00]} {[%emt 00:00:03]} Nf6
{[%clk 00:03:04]} {[%emt 00:00:02]} 5. Qe2 {[%clk 00:03:58]} {[%emt 00:00:04]}
Be6 {[%clk 00:03:03]} {[%emt 00:00:04]} 6. d4 {[%clk 00:03:33]} {[%emt
00:00:28]} Nxe4 {[%clk 00:03:04]} {[%emt 00:00:03]} 7. Qxe4 {[%clk 00:03:33]}
{[%emt 00:00:02]} Bd5 {[%clk 00:03:05]} {[%emt 00:00:02]} 8. Qe3 {[%clk
00:02:40]} {[%emt 00:00:56]} Bxf3 {[%clk 00:03:05]} {[%emt 00:00:03]} 9. Qxf3
{[%clk 00:02:40]} {[%emt 00:00:03]} Qxd4 {[%clk 00:03:06]} {[%emt 00:00:02]} 10.
Bd3 {[%clk 00:02:41]} {[%emt 00:00:02]} Nd7 {[%clk 00:03:07]} {[%emt 00:00:03]}
11. Be3 {[%clk 00:02:08]} {[%emt 00:00:36]} Qb4+ {[%clk 00:02:09]} {[%emt
00:01:01]} 12. c3 {[%clk 00:01:00]} {[%emt 00:01:10]} Qxb2 {[%clk 00:02:10]}
{[%emt 00:00:03]} 13. O-O {[%clk 00:01:01]} Ne5 {[%clk 00:01:32]} {[%emt
00:00:41]} 14. Qe4 {[%clk 00:00:59]} {[%emt 00:00:06]} Nxd3 {[%clk 00:01:34]}
{[%emt 00:00:01]} 15. Qxd3 {[%clk 00:01:01]} Rd8 {[%clk 00:01:35]} {[%emt
00:00:01]} 16. Qc4 {[%clk 00:00:57]} {[%emt 00:00:08]} Qb5 {[%clk 00:01:24]}
{[%emt 00:00:14]} 17. Qh4 {[%clk 00:00:22]} {[%emt 00:00:37]} e6 {[%clk
00:01:07]} {[%emt 00:00:21]} 18. Bxa7 {[%clk 00:00:11]} {[%emt 00:00:15]} Be7
{[%clk 00:01:04]} {[%emt 00:00:06]} 19. Qg3 {[%clk 00:00:13]} {[%emt 00:00:01]}
Bf6 {[%clk 00:00:38]} {[%emt 00:00:29]} 20. Rab1 {[%clk 00:00:12]} {[%emt
00:00:03]} Qc4 {[%clk 00:00:34]} {[%emt 00:00:08]} 21. Rxb7 {[%clk 00:00:07]}
{[%emt 00:00:07]} O-O {[%clk 00:00:35]} {[%emt 00:00:01]} 22. Rb3 {[%clk
00:00:05]} {[%emt 00:00:05]} Qe2 {[%clk 00:00:27]} {[%emt 00:00:11]} 23. Ra3
{[%clk 00:00:05]} {[%emt 00:00:05]} Rd1 {[%clk 00:00:27]} {[%emt 00:00:02]} 0-1